Cogmind - Beta 16 @@@ ROGUE MODE // 2025.11.19 @ 17:16:42 // Winter2019/RPGLIKE Player: Jaegerpls Result: Destroyed by X-77 Beamer with Gatling Laser Performance ------------- Evolutions (6) 3000 Regions Visited (20) 4000 Robots Destroyed (273) 1365 Value Destroyed (12660) 12660 Prototype IDs (62) 1240 Alien Tech Used (0) 0 Bonus (5190) 5190 TOTAL SCORE: 27455 Bonus ------- High Alert Combat Kills 2827 Follower Combat Kills 1339 Aligned with FarCom 300 Met Data Miner 300 Met Warlord at Base 500 MAIN.C Attacked Warlord 500 Friendly Fire -576 Cogmind --------- Core Integrity 0/850 Matter 205/300 Energy 1/1895 System Corruption 5% Temperature Warning (385) Movement Treading (160) Location -4/Factory Parts ------- > --- POWER (2) -------- Antimatter Reactor Light Antimatter Reactor > --- PROPULSION (4) --- Heavy Treads Improved Heavy Treads > --- UTILITY (11) ----- Superbattery Experimental Signal Interpreter Weapon Mount Improved Armor Integrity Analyzer Quantum Capacitor Transmission Jammer Phase Shifter (fused) Advanced Remote Force Field System Mapper Improved System Guard > --- WEAPON (3) ------- Variable Charge Gun (fused) Advanced Datajack > --- INVENTORY (3) ---- (None) Peak State ------------ > --- POWER ------------ Antimatter Reactor Light Antimatter Reactor > --- PROPULSION ------- Heavy Treads Improved Heavy Treads > --- UTILITY ---------- Superbattery Experimental Signal Interpreter Weapon Mount Improved Armor Integrity Analyzer Quantum Capacitor Transmission Jammer Phase Shifter Advanced Remote Force Field System Mapper Improved System Guard > --- WEAPON ----------- Variable Charge Gun Advanced Datajack > --- INVENTORY -------- (None) [Rating: 130] Favorites ----------- Power F-cell Engine Engine F-cell Engine Power Core Light Nuclear Core Reactor Antimatter Reactor Propulsion Heavy Treads Treads Heavy Treads Wheel Armored Huge Wheel Hover Unit Hover Unit Flight Unit Flight Unit Utility Superbattery Device Improved Terrain Scanner Storage Superbattery Processor Improved Signal Interpreter Hackware Improved Hacking Suite Protection Hardened Medium Armor Plating Weapon Plasma Cannon Energy Gun Heavy Particle Gun Energy Cannon Plasma Cannon Ballistic Gun Enhanced Autogun Ballistic Cannon Enhanced Hardcell Cannon Launcher Rocket Launcher Special Weapon Remote Datajack Slashing Weapon Makeshift Sword Piercing Weapon Vortex Lance Special Melee Weapon Advanced Datajack Build | -11 -10 -10 -10 -9 -8 -7 -7 -6 -6 -6 -6 -6 -5 -5 -5 -5 -4 -4 -4 -4 ------- Run | Yrd Mat Min Exi Min Mat Fac Sto Fac Was Fac Low Dat Pro Fac Upp War Pro Fac Was Fac Slots Evolved 16 | 4 2 . 1 1 4 1 1 1 . . . . . . . . . 1 . . Power 1 | . . . . . 1 . . . . . . . . . . . . . . . Propulsion 3 | 1 1 . . 1 . . . . . . . . . . . . . . . . Utility 10 | 2 1 . 1 . 2 1 1 1 . . . . . . . . . 1 . . Weapon 2 | 1 . . . . 1 . . . . . . . . . . . . . . . Parts Attached 136 | 6 8 8 1 5 37 5 8 6 5 9 . . 1 3 . 11 2 11 3 7 Power 19 | 1 . 1 . . 4 . 2 1 1 2 . . . 1 . 1 . 3 1 1 Engine 6 | 1 . . . . 3 . 1 . . 1 . . . . . . . . . . Core 7 | . . 1 . . 1 . 1 1 . . . . . 1 . . . 2 . . Reactor 6 | . . . . . . . . . 1 1 . . . . . 1 . 1 1 1 Propulsion 25 | 2 3 3 . 4 9 . . 1 2 . . . . . . . . 1 . . Treads 10 | . . . . . 7 . . . 2 . . . . . . . . 1 . . Leg . | . . . . . . . . . . . . . . . . . . . . . Wheel 5 | 2 . . . . 2 . . 1 . . . . . . . . . . . . Hover 3 | . 3 . . . . . . . . . . . . . . . . . . . Flight 7 | . . 3 . 4 . . . . . . . . . . . . . . . . Utility 51 | 1 2 2 1 . 10 4 3 3 1 3 . . 1 1 . 6 1 7 1 4 Device 30 | 1 . 1 . . 5 2 3 2 1 3 . . 1 . . 3 . 6 . 2 Storage 2 | . . . 1 . . . . . . . . . . . . 1 . . . . Processor 10 | . 2 . . . 2 . . . . . . . . . . 1 1 1 1 2 Hackware 4 | . . . . . 1 1 . 1 . . . . . . . 1 . . . . Protection 5 | . . 1 . . 2 1 . . . . . . . 1 . . . . . . Artifact . | . . . . . . . . . . . . . . . . . . . . . Weapon 41 | 2 3 2 . 1 14 1 3 1 1 4 . . . 1 . 4 1 . 1 2 Energy Gun 18 | 2 1 . . 1 6 . 3 1 1 1 . . . . . 1 . . . 1 Energy Cannon 13 | . 1 . . . 7 1 . . . 2 . . . . . 1 1 . . . Ballistic Gun 1 | . . . . . 1 . . . . . . . . . . . . . . . Ballistic Cannon 2 | . . . . . . . . . . . . . . 1 . . . . 1 . Launcher 2 | . . 1 . . . . . . . . . . . . . 1 . . . . Special Weapon 1 | . . . . . . . . . . 1 . . . . . . . . . . Impact Weapon . | . . . . . . . . . . . . . . . . . . . . . Slashing Weapon 2 | . 1 1 . . . . . . . . . . . . . . . . . . Piercing Weapon 1 | . . . . . . . . . . . . . . . . 1 . . . . Special Melee Weapon 1 | . . . . . . . . . . . . . . . . . . . . 1 Unidentified Prototypes 29 | . . . . . 7 . 5 1 . 2 . . . 1 . 9 . 3 . 1 Parts Lost 13 | . . . . . . 1 1 . 1 . . . . . . . . 1 9 . Power 2 | . . . . . . . . . . . . . . . . . . . 2 . Propulsion . | . . . . . . . . . . . . . . . . . . . . . Utility 6 | . . . . . . 1 1 . . . . . . . . . . . 4 . Weapon 5 | . . . . . . . . . 1 . . . . . . . . 1 3 . Highest Loss Streak 9 | . . . . . . 1 1 . 1 . . . . . . . . 1 9 . To Critical Strikes 1 | . . . . . . . . . . . . . . . . . . . 1 . Average Backups 2 | . . . 1 1 1 1 1 . 1 2 3 3 3 3 3 2 3 2 . . Power . | . . . . . . . . . . . . . . . . . . . . . Propulsion . | . . . . . . . . . . . . . . . . . . . . . Utility 1 | . . . . . 1 1 1 . 1 2 3 3 3 3 3 2 2 1 . . Weapon . | . . . 1 1 . . . . . . . . . . . . 1 1 . . Tool/Special . | . . . . . . . . . . . . . . . . . . . . . Unused Backups 2 | . . . . . 1 . . . . . . . . . . . . 1 . . Power . | . . . . . . . . . . . . . . . . . . . . . Propulsion . | . . . . . . . . . . . . . . . . . . . . . Utility 2 | . . . . . 1 . . . . . . . . . . . . 1 . . Weapon . | . . . . . . . . . . . . . . . . . . . . . Tool/Special . | . . . . . . . . . . . . . . . . . . . . . Average Slot Usage (%) 87 | . 92 86 80 82 95 87 87 88 85 88 89 89 89 88 89 87 84 84 61 72 Engine 4 | . 11 1 . . 5 11 10 10 6 5 5 5 5 4 5 3 . . . . Core 1 | . . 8 9 8 6 . . . . . . . . . . . . 3 1 . Reactor 3 | . . . . . . . . . 3 5 5 5 5 5 5 5 5 3 3 9 Treads 8 | . . . . . 20 . . . 5 10 10 10 10 10 10 10 10 10 10 10 Wheel 2 | . 6 . . . 2 11 11 10 4 . . . . . . . . . . . Flight 2 | . . 10 28 31 2 . . . . . . . . . . . . . . . Device 25 | . 11 13 9 8 13 22 29 32 29 31 31 31 31 31 31 30 31 32 19 22 Storage 5 | . . . 3 8 6 5 5 5 5 5 5 5 5 5 5 5 5 5 4 5 Processor 5 | . 20 9 . . 8 5 5 5 5 5 5 5 5 5 5 5 5 5 8 14 Hackware 4 | . . . . . 4 4 . 1 5 5 5 5 5 5 5 5 5 5 5 5 Protection 5 | . . 5 9 8 6 5 5 5 5 5 5 5 5 5 5 5 5 5 1 . Energy Gun 1 | . 17 . . 6 5 . . . 2 . . . . . . . . . . 3 Energy Cannon 12 | . 2 4 . . 10 17 16 15 10 14 15 15 15 14 15 14 15 14 4 . Slashing Weapon 1 | . 3 15 19 10 . . . . . . . . . . . . . . . . Peak Build Rating 130 | 8 11 19 25 27 65 68 76 85 98 98 96 96 98 99 99 114 116 129 125 130 Average Rating 83 | 4 9 14 18 26 49 67 72 77 89 94 95 96 96 98 99 102 115 123 101 120 On Entrance 71 | . 8 11 15 25 27 65 68 76 85 98 96 96 96 98 99 99 111 116 125 96 Avg Prop Armor Cover (%) 4 | . . 4 . . . . . . 5 . . . . . . . . . . . Naked Turns . | . . . . . . . . . . . . . . . . . . . . . Heaviest Build 118 | 10 11 15 17 18 55 59 66 68 69 79 79 79 80 92 92 100 103 118 96 67 Greatest Support 155 | 20 23 23 17 26 93 66 66 66 150 150 150 150 150 150 150 150 150 155 155 155 Greatest Overweight (x) 1 | . 1 1 . . 1 . . 1 1 . . . . . . . . . . . Average Overweight (x) . | . . . . . . . . . . . . . . . . . . . . . Largest Inventory Capacity 3 | 1 1 1 1 2 2 2 2 2 2 3 3 3 3 3 3 3 3 3 3 3 Average Capacity 2 | 1 1 1 1 1 2 2 2 2 2 2 3 3 3 3 3 3 3 3 3 3 Most Carried 3 | . 1 1 1 1 2 2 2 2 2 3 3 3 3 3 3 3 3 3 3 . Average Carried 2 | . . . 1 1 1 1 1 . 1 2 3 3 3 3 3 2 3 2 . . Final Capacity 3 | 1 1 1 1 2 2 2 2 2 2 3 3 3 3 3 3 3 3 3 3 3 Final Carried 3 | . 1 1 1 1 2 2 1 1 2 3 3 3 3 3 3 3 3 3 . . Class Distribution -------------------- 74% | Hacker-Skirmisher 5% | Hacker-Gunner 4% | Scavenger-Scout 3% | Scavenger-Gladiator 3% | Mutant Dominant Class ---------------- Mutant | -10/Materials Scavenger-Gladiator | -10/Mines Scavenger-Gladiator | -10/Exiles Scavenger-Scout | -9/Mines Hacker-Skirmisher | -8/Materials Hacker-Skirmisher | -7/Factory Hacker-Skirmisher | -7/Storage Hacker-Gunner | -6/Factory Hacker-Tank | -6/Waste Hacker-Skirmisher | -6/Factory Hacker-Skirmisher | -6/Lower Caves Hacker-Skirmisher | -6/Data Miner Hacker-Skirmisher | -5/Proximity Caves Hacker-Skirmisher | -5/Factory Hacker-Skirmisher | -5/Upper Caves Hacker-Skirmisher | -5/Warlord Hacker-Skirmisher | -4/Proximity Caves Hacker-Skirmisher | -4/Factory Hacker-Mutant | -4/Waste Hacker-Mutant | -4/Factory Resources | -11 -10 -10 -10 -9 -8 -7 -7 -6 -6 -6 -6 -6 -5 -5 -5 -5 -4 -4 -4 -4 ----------- Run | Yrd Mat Min Exi Min Mat Fac Sto Fac Was Fac Low Dat Pro Fac Upp War Pro Fac Was Fac Matter Collected 2442 | 145 255 61 . 100 475 92 224 20 90 200 10 . 10 . 50 160 20 176 220 134 Remotely . | . . . . . . . . . . . . . . . . . . . . . Salvage Created 10583 | 123 320 241 . 245 2410 698 1664 221 . 1481 232 . 147 172 109 . 74 1330 816 300 Parts 535 | 6 30 18 . 14 173 37 66 13 2 54 16 . 13 8 4 . 4 63 4 10 Haulers Intercepted 15 | . 2 . . . 6 1 6 . . . . . . . . . . . . . Recyclers Shooed 1 | . . . . . . . . . . . . . . . . . . 1 . . Parts Field Recycled . | . . . . . . . . . . . . . . . . . . . . . Retrieved Matter . | . . . . . . . . . . . . . . . . . . . . . Parts Self-Destructed 19 | . . . . . . . . . . . 6 . 6 . 5 . 2 . . . Prevented 23 | . . . . . . . . . . . 10 . 7 . 4 . 2 . . . Parts Restored . | . . . . . . . . . . . . . . . . . . . . . Kills | -11 -10 -10 -10 -9 -8 -7 -7 -6 -6 -6 -6 -6 -5 -5 -5 -5 -4 -4 -4 -4 ------- Run | Yrd Mat Min Exi Min Mat Fac Sto Fac Was Fac Low Dat Pro Fac Upp War Pro Fac Was Fac Combat Hostiles Destroyed 188 | . 10 4 . 11 50 16 29 2 1 17 5 . 5 1 2 . 3 22 6 4 Melee 14 | . . 2 . 10 2 . . . . . . . . . . . . . . . Guns 17 | . 5 . . 1 8 . . . . . . . . . . . . . . 3 Cannons 128 | . . 2 . . 37 11 24 2 . 14 4 . 4 1 2 . 2 19 5 1 AOE 10 | . 4 . . . 2 3 . . . . . . 1 . . . . . . . Classes Destroyed 20 | 2 6 . . 1 8 1 . . 1 . 1 . . . . . . . . . Worker 12 | . 2 2 . . . 1 . 2 . 4 . . . 1 . . . . . . Builder 5 | . . . . . 2 . . . . 1 . . . . . . . 1 . 1 Tunneler 9 | 3 1 . . . 2 1 . 1 . 1 . . . . . . . . . . Hauler 15 | . 2 . . . 6 1 6 . . . . . . . . . . . . . Recycler 10 | 1 . 2 . 1 1 . 1 . . 2 . . . . . . . 2 . . Operator 9 | . 2 . . . 5 . 1 . . 1 . . . . . . . . . . Watcher 24 | . 3 . . . 5 3 2 2 . 4 . . . 1 . . . 4 . . Swarmer 32 | . 6 2 . 10 7 . 3 . . . 4 . . . . . . . . . Grunt 59 | . 4 2 . . 24 6 10 . . 4 . . 2 . . . 1 6 . . Brawler 6 | . . . . . 1 1 1 . . 2 . . 1 . . . . . . . Duelist 4 | . . . . . 1 . . . . 3 . . . . . . . . . . Protector 3 | . . . . . 1 1 1 . . . . . . . . . . . . . Sentry 31 | . . . . . 8 4 11 . . 2 . . 2 . 1 . . 2 . 1 Specialist 5 | . . . . . 4 . . . . . . . . . . . . . . 1 Hunter 7 | . . . . . 3 . . . . 1 . . . . 1 . . 2 . . Programmer 31 | . . . . . . 4 3 2 . 5 . . . 1 . . 2 12 . 2 Heavy 1 | . . . . . 1 . . . . . . . . . . . . . . . Behemoth 1 | . . . . . . . . . . . 1 . . . . . . . . . Compactor 7 | . . . . . . . . . 1 . . . . . . . . . 6 . Assembled 1 | . . . . 1 . . . . . . . . . . . . . . . . Wasp 2 | . . . . . . . . . . 2 . . . . . . . . . . Best Kill Streak 7 | 3 4 3 . 5 6 7 6 2 1 6 4 . 3 1 1 . 2 5 4 3 Combat Bots Only 6 | . 3 2 . 4 6 6 6 1 1 2 4 . 3 1 1 . 2 3 4 2 Max Kills in Single Turn 4 | 1 3 2 . 1 1 4 1 2 1 3 1 . 1 1 1 . 1 1 1 1 Gunslinging 1 | . 1 . . . . . . . . . . . . . . . . . . . Exploded 3 | . 2 . . . 1 3 . . . . . . 1 . . . . . . . Melee 1 | . . 1 . 1 1 . . . . . . . . . . . . . . . Uniques/NPCs Destroyed . | . . . . . . . . . . . . . . . . . . . . . Combat | -11 -10 -10 -10 -9 -8 -7 -7 -6 -6 -6 -6 -6 -5 -5 -5 -5 -4 -4 -4 -4 -------- Run | Yrd Mat Min Exi Min Mat Fac Sto Fac Was Fac Low Dat Pro Fac Upp War Pro Fac Was Fac Hostile Shots Fired 1126 | . 30 13 . 40 239 110 276 6 2 84 33 . 15 2 10 . 9 107 14 136 Missed 417 | . 16 1 . 11 81 41 112 3 1 42 9 . 7 1 4 . 3 38 . 47 Hits 709 | . 14 12 . 29 158 69 164 3 1 42 24 . 8 1 6 . 6 69 14 89 Melee 24 | . . . . . 5 . 1 . 1 2 . . 1 . . . . . 14 . Projectile 685 | . 14 12 . 29 153 69 163 3 . 40 24 . 7 1 6 . 6 69 . 89 AOE 6 | . . . . . . . . . . . . . . . . 5 . 1 . . Critical Strikes 28 | . . . . . 10 . 3 . 1 1 1 . 1 . . . . 3 7 1 Part Disruptions 2 | . . . . . . 1 . . . 1 . . . . . . . . . . Damage Taken 9334 | 36 217 149 . 240 2458 1138 1421 235 29 540 257 . 93 10 51 120 61 799 456 1024 Core 6946 | 28 182 116 . 182 1817 815 1050 212 23 390 175 . 69 8 32 91 46 601 329 780 Absorbed by Shields 4026 | . . . . . 757 438 575 80 10 323 267 . 97 11 53 131 65 569 126 524 Redirected to Core 5950 | 28 121 92 . 114 1504 688 896 86 23 343 175 . 69 8 26 79 46 568 329 755 Ignored by Resistances 178 | . . . . . . . . . . . . . . . 26 . . 107 45 . Regen/Repaired (Parts) 63 | . . . . . . . . . 51 12 . . . . . . . . . . Core Remaining (%) 95 | 95 . . . 82 100 . 100 . . . . . 100 . . . 94 . . . Volleys Fired 953 | 9 95 12 . 6 217 95 107 29 8 83 11 . 15 4 5 . 12 132 47 66 Largest 3 | 2 2 1 . 1 3 3 3 3 3 3 3 . 3 3 3 . 3 3 1 1 Hottest 251 | 90 90 60 . 45 199 240 225 225 225 235 226 . 226 226 226 . 251 251 105 225 Shots Fired 2066 | 18 151 12 . 6 518 273 313 87 24 243 33 . 45 12 15 . 29 174 48 65 Gun 361 | 18 116 . . 6 158 . . . . 9 . . . . . . . . . 54 Cannon 1704 | . 35 11 . . 360 273 313 87 24 234 33 . 45 12 15 . 29 174 48 11 Launcher 1 | . . 1 . . . . . . . . . . . . . . . . . . Special . | . . . . . . . . . . . . . . . . . . . . . Kinetic 30 | . . . . . . . . . . . . . . . . . . . 19 11 Thermal 1568 | 9 36 11 . . 337 273 313 87 24 173 22 . 30 8 10 . 22 153 6 54 Explosive 1 | . . 1 . . . . . . . . . . . . . . . . . . Electromagnetic 445 | 9 115 . . 6 181 . . . . 70 11 . 15 4 5 . 7 21 1 . Entropic 22 | . . . . . . . . . . . . . . . . . . . 22 . Robot Hit Streak 45 | 4 17 6 . 8 26 19 42 6 26 45 13 . 18 3 5 . 11 23 31 37 Robot Miss Streak 4 | 4 3 1 . . 4 3 2 1 . 3 1 . 1 1 1 . . 2 1 1 Penetration Max . | . . . . . . . . . . . . . . . . . . . . . Secondary Targets 2 | . 2 . . . . . . . . . . . . . . . . . . . Max Gunslinging Chain 1 | . 1 . . . . . . . . . . . . . . . . . . . Capacitor 184 | . . . . . . . . . . . . . . . . . . 101 29 54 Shots Hit Robots 981 | 7 55 10 . 19 250 73 154 14 24 120 25 . 21 3 10 . 8 104 44 40 Core Hits 372 | 4 20 9 . 9 104 32 56 6 1 45 7 . 11 3 4 . 2 37 11 11 Critical Kills 11 | . . . . . . . 2 . 1 2 . . . . . . 1 4 1 . Critical Parts Destroyed . | . . . . . . . . . . . . . . . . . . . . . Critical Strikes 28 | 1 1 . . 1 11 . 2 . 1 3 1 . . . . . 1 4 2 . Burn 8 | 1 . . . . 6 . . . . 1 . . . . . . . . . . Meltdown 11 | . . . . . . . 2 . 1 2 . . . . . . 1 4 1 . Corrupt 5 | . 1 . . . 3 . . . . . 1 . . . . . . . . . Sever 3 | . . . . 1 2 . . . . . . . . . . . . . . . Sunder 1 | . . . . . . . . . . . . . . . . . . . 1 . Melee Attacks 77 | . . 11 . 53 13 . . . . . . . . . . . . . . . Impact . | . . . . . . . . . . . . . . . . . . . . . Slashing 77 | . . 11 . 53 13 . . . . . . . . . . . . . . . Piercing . | . . . . . . . . . . . . . . . . . . . . . Sneak Attacks 3 | . . . . 1 2 . . . . . . . . . . . . . . . Combat Hostiles . | . . . . . . . . . . . . . . . . . . . . . Follow-up Attacks 2 | . . 1 . 1 . . . . . . . . . . . . . . . . Damage Inflicted 34381 | 125 1232 346 . 714 6421 2885 4860 692 773 4852 762 . 745 165 351 . 388 4972 2632 1466 Guns 3564 | 92 817 . . 26 1602 . . . . 48 . . . . . . . . . 979 Cannons 26169 | . 35 105 . . 4059 2114 4675 474 773 3903 762 . 669 76 351 . 268 4881 2632 392 Explosions 3370 | 33 380 126 . . 289 771 185 218 . 897 . . 76 89 . . 120 91 . 95 Melee 1269 | . . 115 . 688 466 . . . . . . . . . . . . . . . Ramming 9 | . . . . . 5 . . . . 4 . . . . . . . . . . Kinetic 1150 | . . . . . . . . . . . . . . . . . . . 758 392 Thermal 23432 | 70 247 153 . . 3242 2685 4675 692 773 3253 556 . 450 156 193 . 319 4652 269 1047 Explosive 866 | . 168 78 . . . 60 185 . . 375 . . . . . . . . . . Electromagnetic 6053 | 55 817 . . 26 2708 140 . . . 1220 206 . 295 9 158 . 69 320 3 27 Impact . | . . . . . . . . . . . . . . . . . . . . . Slashing 1269 | . . 115 . 688 466 . . . . . . . . . . . . . . . Piercing . | . . . . . . . . . . . . . . . . . . . . . Entropic 1602 | . . . . . . . . . . . . . . . . . . . 1602 . Highest Corruption 16 | . . . . . . 7 14 1 . 1 . . . . . . . 3 16 16 Average Corruption 7 | . . . . . . 6 10 1 . 1 . . . . . . . 2 8 6 Corruption Purged 16 | . . . . . . . . 1 . 3 . . . . . . . 5 7 . Corruption Blocked . | . . . . . . . . . . . . . . . . . . . . . Effects 132 | . . . . . . 33 58 1 . . . . . . . . . 5 14 21 Message Errors 33 | . . . . . . 8 17 . . . . . . . . . . . 2 6 Matter Fused 24 | . . . . . . 6 9 . . . . . . . . . . 1 1 7 Heat Flow Errors 20 | . . . . . . 2 14 . . . . . . . . . . . 1 3 Energy Discharges 17 | . . . . . . 3 6 1 . . . . . . . . . 2 4 1 Parts Fused 4 | . . . . . . 1 1 . . . . . . . . . . . . 2 Data Loss (minor) 11 | . . . . . . 2 6 . . . . . . . . . . 1 1 1 Data Loss (major) 8 | . . . . . . 4 1 . . . . . . . . . . 1 1 1 Misfires 3 | . . . . . . . 1 . . . . . . . . . . . 2 . Alerts 2 | . . . . . . 1 . . . . . . . . . . . . 1 . Weapon Failures 10 | . . . . . . 6 3 . . . . . . . . . . . 1 . Overload Shots 10 | . . . . . . . . . . . . . . . . . . . . 10 Effects 2 | . . . . . . . . . . . . . . . . . . . . 2 Energy Bleed 1 | . . . . . . . . . . . . . . . . . . . . 1 Short Circuit 1 | . . . . . . . . . . . . . . . . . . . . 1 Overflow Damage 1525 | . 24 . . 125 132 91 55 120 . 529 . . . 49 . . 114 278 5 3 Projectiles 826 | . . . . . 102 40 55 54 . 258 . . . . . . 34 278 5 . Explosions 544 | . 24 . . . . 51 . 66 . 271 . . . 49 . . 80 . . 3 Melee 155 | . . . . 125 30 . . . . . . . . . . . . . . . Knockbacks . | . . . . . . . . . . . . . . . . . . . . . Impact . | . . . . . . . . . . . . . . . . . . . . . Kinetic . | . . . . . . . . . . . . . . . . . . . . . Secondary . | . . . . . . . . . . . . . . . . . . . . . Self-Inflicted Damage 911 | 36 73 . . . 334 221 38 . . 45 . . . . . . . . . 164 Shots 19 | 1 2 . . . 6 5 1 . . 2 . . . . . . . . . 2 Rammed 2 | . . . . . 1 . . . . 1 . . . . . . . . . . Targets Rammed 2 | . . . . . 1 . . . . 1 . . . . . . . . . . Kicked . | . . . . . . . . . . . . . . . . . . . . . Crushed . | . . . . . . . . . . . . . . . . . . . . . Highest Temperature 395 | 10 22 7 . . 395 172 255 257 144 78 8 . 6 . . . . 378 76 367 Average Temperature 45 | 8 12 7 . . 50 12 32 99 77 8 3 . 2 . . . . 94 41 158 Received Heat Transfer 1890 | . 27 66 . . 736 106 425 . . 108 30 . 24 . 8 . . 108 . 252 Effects 2 | . . . . . 1 . . . . . . . . . . . . 1 . . Energy Bleed 1 | . . . . . . . . . . . . . . . . . . 1 . . Interference 1 | . . . . . 1 . . . . . . . . . . . . . . . Siege Activations 1 | . . . . . . . . . . . . . . 1 . . . . . . Total Turns 2 | . . . . . . . . . . . . . . 2 . . . . . . Longest Duration 2 | . . . . . . . . . . . . . . 2 . . . . . . Martial Activations . | . . . . . . . . . . . . . . . . . . . . . Shielding Activations . | . . . . . . . . . . . . . . . . . . . . . Robots Disrupted 1 | . . . . . . 1 . . . . . . . . . . . . . . Combat Hostiles . | . . . . . . . . . . . . . . . . . . . . . Robots Corrupted 7 | . 4 . . . 1 . . . . 1 1 . . . . . . . . . Combat Hostiles 4 | . 1 . . . 1 . . . . 1 1 . . . . . . . . . Parts Fried 28 | . 2 . . . 20 . . . . 2 1 . . . 2 . . 1 . . Impact Corruptions . | . . . . . . . . . . . . . . . . . . . . . Robots Melted 17 | . . . . . . 2 5 . 1 3 . . . . . . 1 4 1 . Combat Hostiles 15 | . . . . . . 2 5 . 1 2 . . . . . . 1 3 1 . Parts Melted 78 | 1 1 . . . 5 13 30 3 1 10 2 . . 1 . . 1 7 3 . Heat Transferred 30072 | 185 274 272 . . 5748 3590 6845 837 1096 4086 746 . 585 150 261 . 198 3676 222 1301 Parts Sabotaged 3 | . . . . . . . . . . 3 . . . . . . . . . . Parts Stolen . | . . . . . . . . . . . . . . . . . . . . . Parts Stripped . | . . . . . . . . . . . . . . . . . . . . . Power Chain Reactions 11 | 1 4 . . . 4 . . . . . . . 1 . . . 1 . . . Alert | -11 -10 -10 -10 -9 -8 -7 -7 -6 -6 -6 -6 -6 -5 -5 -5 -5 -4 -4 -4 -4 ------- Run | Yrd Mat Min Exi Min Mat Fac Sto Fac Was Fac Low Dat Pro Fac Upp War Pro Fac Was Fac Maximum Alert Level 5 | . 2 1 . 1 5 4 3 3 1 5 . . . 1 . . . 2 . . Low Security (%) 46 | 100 63 92 . 75 23 . . . 86 25 . . . 96 . . . 85 100 100 Level 1 11 | . 31 7 . 24 10 . 8 15 13 16 . . . 3 . . . 9 . . Level 2 10 | . 4 . . . 7 12 37 59 . 6 . . . . . . . 4 . . Level 3 16 | . . . . . 21 68 52 24 . 7 . . . . . . . . . . Level 4 11 | . . . . . 31 18 . . . 24 . . . . . . . . . . Level 5 4 | . . . . . 5 . . . . 19 . . . . . . . . . . High Security . | . . . . . . . . . . . . . . . . . . . . . Max Security . | . . . . . . . . . . . . . . . . . . . . . Sterilizations 1 | . . . . . 1 . . . . . . . . . . . . . . . Peak Influence 1905 | 10 459 206 . 291 1795 1544 889 783 257 1905 . . . 310 . . . 427 42 190 Initial 813 | . . 176 . . 58 813 700 391 257 . . . . . . . . . 42 1 Average 474 | 2 155 159 . 137 785 907 652 536 81 840 . . . 12 . . . 93 4 85 Influence Increases 13306 | 20 831 241 . 564 2503 1318 1179 976 39 3430 120 . 110 387 50 . 70 946 4 518 Destroy 0b10 Robot/C 4160 | . 200 80 . 200 1000 300 560 40 . 940 100 . 100 20 40 . 60 440 . 80 Destroy 0b10 Robot/NC 465 | 20 50 20 . 5 110 35 55 25 . 95 . . . 10 . . . 35 . 5 Destroy Leader 1162 | . 50 20 . 30 272 108 186 24 . 262 20 . 10 12 10 . 10 118 . 30 Allied During Kill 845 | . . . . 14 4 . . . . 827 . . . . . . . . . . Successful Hack 134 | . 35 . . . . 39 20 12 . 10 . . . 4 . . . 6 . 8 Disable Machine 4110 | . 360 60 . 285 585 555 210 570 . 765 . . . 285 . . . 210 . 225 Anti-Garrison Action 150 | . . . . . . . . 150 . . . . . . . . . . . . Destroy Structure 1890 | . 121 16 . . 442 266 133 155 39 366 . . . 56 . . . 122 4 170 Partial Spotted 30 | . . . . . 15 . . . . . . . . . . . . 15 . . Lose Combat Pursuer 360 | . 15 45 . 30 75 15 15 . . 165 . . . . . . . . . . Influence Decreases 13149 | 20 378 547 147 413 865 1566 1860 1101 774 1530 1331 689 110 85 352 . 70 824 124 363 Entered New Map 4867 | . . 277 147 . 93 976 841 469 478 . 703 689 . . 113 . . . 80 1 Time Decay 6086 | 20 378 270 . 413 747 580 559 482 266 631 628 . 110 77 239 . 70 306 24 286 Lost Part 30 | . . . . . . 10 10 . 10 . . . . . . . . . . . Lost Ally 275 | . . . . . 25 . . . 20 210 . . . . . . . . 20 . Purge Threat 1891 | . . . . . . . 450 150 . 689 . . . 8 . . . 518 . 76 Squads Dispatched 56 | . . . . . 10 8 6 4 . 16 . . . 1 . . . 8 . 3 Investigation 5 | . . . . . 1 . 1 . . 1 . . . . . . . 2 . . Extermination 24 | . . . . . . 3 3 2 . 8 . . . 1 . . . 6 . 1 Reinforcement 16 | . . . . . 8 2 1 . . 3 . . . . . . . . . 2 Assault 11 | . . . . . 1 3 1 2 . 4 . . . . . . . . . . Garrison . | . . . . . . . . . . . . . . . . . . . . . Intercept . | . . . . . . . . . . . . . . . . . . . . . Searches Triggered . | . . . . . . . . . . . . . . . . . . . . . Unchained Authorized 2 | . . . . . . . . . . . . . . . . . . 1 . 1 Construction Impeded 4 | . . . . . 1 2 . . . 1 . . . . . . . . . . Haulers Reinforced 1 | . . . . . . . 1 . . . . . . . . . . . . . Active Scanning Responses . | . . . . . . . . . . . . . . . . . . . . . Cargo Convoy Interrupts . | . . . . . . . . . . . . . . . . . . . . . Stealth | -11 -10 -10 -10 -9 -8 -7 -7 -6 -6 -6 -6 -6 -5 -5 -5 -5 -4 -4 -4 -4 --------- Run | Yrd Mat Min Exi Min Mat Fac Sto Fac Was Fac Low Dat Pro Fac Upp War Pro Fac Was Fac Distress Signals 10 | . . . . . 4 1 . . . 3 . . . . . 2 . . . . Communications Jammed 68 | . . . . . . . 38 1 . 9 . . . . . . . 20 . . Distress Signals 67 | . . . . . . . 38 1 . 9 . . . . . . . 19 . . Times Spotted 285 | . 17 7 . 13 67 19 34 4 5 61 4 . 4 2 2 8 2 25 5 6 Peak Tracking Total 10 | . 4 3 . 3 5 6 7 1 3 10 3 . 2 1 1 10 2 4 2 2 Tactical Retreats 18 | . 1 2 . 2 5 1 1 . . 6 . . . . . . . . . . Traps | -11 -10 -10 -10 -9 -8 -7 -7 -6 -6 -6 -6 -6 -5 -5 -5 -5 -4 -4 -4 -4 ------- Run | Yrd Mat Min Exi Min Mat Fac Sto Fac Was Fac Low Dat Pro Fac Upp War Pro Fac Was Fac Traps Triggered 9 | . 2 . . . 2 . 3 1 . . . . . . . . . 1 . . Indirectly . | . . . . . . . . . . . . . . . . . . . . . Trap Hack Attempts . | . . . . . . . . . . . . . . . . . . . . . Triggered . | . . . . . . . . . . . . . . . . . . . . . Disarmed 5 | . . . . . . . . . . 5 . . . . . . . . . . Reprogrammed . | . . . . . . . . . . . . . . . . . . . . . Reused . | . . . . . . . . . . . . . . . . . . . . . Traps Extracted . | . . . . . . . . . . . . . . . . . . . . . Installed . | . . . . . . . . . . . . . . . . . . . . . Triggered . | . . . . . . . . . . . . . . . . . . . . . Machines | -11 -10 -10 -10 -9 -8 -7 -7 -6 -6 -6 -6 -6 -5 -5 -5 -5 -4 -4 -4 -4 ---------- Run | Yrd Mat Min Exi Min Mat Fac Sto Fac Was Fac Low Dat Pro Fac Upp War Pro Fac Was Fac Machines Disabled 275 | . 24 4 . 19 39 37 14 39 . 51 . . . 19 . . . 14 . 15 Max in Single Turn 17 | . 4 1 . 1 3 5 2 10 . 10 . . . 17 . . . 8 . 6 Garrison Access 5 | . . . . . . 1 1 2 . . . . . . . . . 1 . . Machines Repaired . | . . . . . . . . . . . . . . . . . . . . . Machines Dismantled . | . . . . . . . . . . . . . . . . . . . . . Machines Sabotaged . | . . . . . . . . . . . . . . . . . . . . . Overloaded Fab Kills . | . . . . . . . . . . . . . . . . . . . . . Hacking | -11 -10 -10 -10 -9 -8 -7 -7 -6 -6 -6 -6 -6 -5 -5 -5 -5 -4 -4 -4 -4 --------- Run | Yrd Mat Min Exi Min Mat Fac Sto Fac Was Fac Low Dat Pro Fac Upp War Pro Fac Was Fac Machines Accessed 85 | . 9 . 5 1 10 8 11 5 . 11 . 4 . 2 1 7 . 8 . 3 Terminals 43 | . 7 . . 1 6 3 9 3 . 8 . . . 2 . . . 3 . 1 Fabricators 4 | . . . . . . 1 . 1 . . . . . . . . . 2 . . Repair Stations . | . . . . . . . . . . . . . . . . . . . . . Recycling Units 11 | . 2 . . . 2 2 1 . . 2 . . . . . . . 1 . 1 Scanalyzers 5 | . . . . . 1 1 . . . 1 . . . . . . . 1 . 1 Garrison Access 5 | . . . . . 1 1 1 1 . . . . . . . . . 1 . . Total Hacks 327 | . 23 . 50 2 25 18 33 14 . 52 . 34 . 12 1 15 . 31 . 17 Successful 232 | . 15 . 50 1 15 11 11 6 . 30 . 34 . 9 1 15 . 24 . 10 Failed 90 | . 7 . . 1 9 7 22 8 . 21 . . . 3 . . . 6 . 6 Catastrophic 13 | . 1 . . . 1 1 2 . . 6 . . . . . . . 2 . . Database Lockouts 5 | . 1 . . . 1 . . . . 1 . . . . . . . 1 . 1 Manual 126 | . 20 . 2 2 16 11 20 11 . 15 . . . 6 . 1 . 17 . 5 Terminals 159 | . 18 . . 2 13 7 29 12 . 42 . . . 12 . . . 15 . 9 Fabricators 6 | . . . . . . 1 . 1 . . . . . . . . . 4 . . Repair Stations . | . . . . . . . . . . . . . . . . . . . . . Recycling Units 36 | . 5 . . . 6 5 3 . . 7 . . . . . . . 6 . 4 Scanalyzers 19 | . . . . . 4 3 . . . 3 . . . . . . . 5 . 4 Garrison Access 7 | . . . . . 2 2 1 1 . . . . . . . . . 1 . . Terminal Hacks 153 | . 4 . 50 . 1 . 8 2 . 18 . 34 . 7 1 15 . 8 . 5 Record 78 | . . . 49 . . . . . . 1 . 11 . 3 . 14 . . . . Part Schematic 15 | . . . . . . . . . . . . 12 . 1 . . . . . 2 Robot Schematic 8 | . . . . . . . . . . . . 8 . . . . . . . . Robot Analysis 4 | . 3 . . . 1 . . . . . . . . . . . . . . . Prototype ID Bank 3 | . . . . . . . . . . . . 3 . . . . . . . . Open Door 5 | . . . . . . . 3 . . . . . . . 1 1 . . . . Emergency Access Points 1 | . . . . . . . . . . 1 . . . . . . . . . . Alert Level 9 | . . . . . . . 2 1 . 3 . . . 1 . . . 1 . 1 Unreport Threat 18 | . . . . . . . 3 1 . 5 . . . 2 . . . 5 . 2 Locate Traps 3 | . 1 . . . . . . . . 1 . . . . . . . 1 . . Disarm Traps 3 | . . . . . . . . . . 3 . . . . . . . . . . Patrol Status 1 | . . . . . . . . . . 1 . . . . . . . . . . Reinforcement Status 2 | . . . . . . . . . . 2 . . . . . . . . . . Recall Reinforcements 1 | . . . . . . . . . . 1 . . . . . . . . . . Zone Layout 1 | . . . . . . . . . . . . . . . . . . 1 . . Proto ID Catalog 1 | . . . 1 . . . . . . . . . . . . . . . . . Fabricator Hacks 6 | . . . . . . 1 . 1 . . . . . . . . . 4 . . Network Status 2 | . . . . . . 1 . 1 . . . . . . . . . . . . Load Schematic 2 | . . . . . . . . . . . . . . . . . . 2 . . Build 2 | . . . . . . . . . . . . . . . . . . 2 . . Repair Station Hacks . | . . . . . . . . . . . . . . . . . . . . . Recycling Unit Hacks 16 | . 2 . . . 4 2 . . . 4 . . . . . . . 2 . 2 Report Inventory 10 | . 2 . . . 2 2 . . . 2 . . . . . . . 1 . 1 Retrieve Components 6 | . . . . . 2 . . . . 2 . . . . . . . 1 . 1 Scanalyzer 11 | . . . . . 3 1 . . . 2 . . . . . . . 4 . 1 Retrieve Study 11 | . . . . . 3 1 . . . 2 . . . . . . . 4 . 1 Garrison Access Hacks 4 | . . . . . . 1 1 1 . . . . . . . . . 1 . . Seal Access 4 | . . . . . . 1 1 1 . . . . . . . . . 1 . . Unauthorized Hacks 42 | . 9 . . 1 7 6 2 2 . 6 . . . 2 . . . 5 . 2 Terminals 31 | . 7 . . 1 6 3 2 2 . 5 . . . 2 . . . 2 . 1 Botnet 20 | . 2 . . . 2 2 2 2 . 5 . . . 2 . . . 2 . 1 Skim 11 | . 5 . . 1 4 1 . . . . . . . . . . . . . . Fabricators . | . . . . . . . . . . . . . . . . . . . . . Repair Stations . | . . . . . . . . . . . . . . . . . . . . . Recycling Units 9 | . 2 . . . 1 2 . . . 1 . . . . . . . 3 . . Monitor 1 | . . . . . . . . . . . . . . . . . . 1 . . Reject 6 | . 2 . . . 1 1 . . . 1 . . . . . . . 1 . . Recyclers 2 | . . . . . . 1 . . . . . . . . . . . 1 . . Scanalyzers 1 | . . . . . . . . . . . . . . . . . . . . 1 Researchers 1 | . . . . . . . . . . . . . . . . . . . . 1 Garrison Access 1 | . . . . . . 1 . . . . . . . . . . . . . . Watchers 1 | . . . . . . 1 . . . . . . . . . . . . . . Data Cores Recovered 4 | . 1 . . . 1 . 1 . . 1 . . . . . . . . . . Used 2 | . . . . . 1 . 1 . . . . . . . . . . . . . Hacking Detections 53 | . 8 . . 1 9 6 8 2 . 9 . . . 2 . . . 7 . 1 Full Trace Events 5 | . . . . . 1 . 1 . . 1 . . . . . . . 2 . . Feedback Events . | . . . . . . . . . . . . . . . . . . . . . Feedback Blocked . | . . . . . . . . . . . . . . . . . . . . . Robot Schematics Acquired 8 | . . . . . . . . . . . . 8 . . . . . . . . Robots Built . | . . . . . . . . . . . . . . . . . . . . . Authchips . | . . . . . . . . . . . . . . . . . . . . . Time . | . . . . . . . . . . . . . . . . . . . . . Total Robot Build Rating . | . . . . . . . . . . . . . . . . . . . . . Part Schematics Acquired 15 | . . . . . . . . . . . . 12 . 1 . . . . . 2 Parts Built 4 | . . . . . . . . . . . . . . . . . . 4 . . Authchips . | . . . . . . . . . . . . . . . . . . . . . Time 234 | . . . . . . . . . . . . . . . . . . 234 . . Total Part Build Rating 28 | . . . . . . . . . . . . . . . . . . 28 . . Part Studies Acquired 8 | . . . . . 3 1 . . . . . . . . . . . 4 . . Parts Repaired . | . . . . . . . . . . . . . . . . . . . . . Time . | . . . . . . . . . . . . . . . . . . . . . Parts Recycled . | . . . . . . . . . . . . . . . . . . . . . Recycled Matter . | . . . . . . . . . . . . . . . . . . . . . Retrieved Matter . | . . . . . . . . . . . . . . . . . . . . . Retrieved Components 36 | . . . . . 13 . . . . 13 . . . . . . . 8 . 2 Parts Scanalyzed . | . . . . . . . . . . . . . . . . . . . . . Part Schematics Acquired . | . . . . . . . . . . . . . . . . . . . . . Parts Damaged . | . . . . . . . . . . . . . . . . . . . . . Bothacking | -11 -10 -10 -10 -9 -8 -7 -7 -6 -6 -6 -6 -6 -5 -5 -5 -5 -4 -4 -4 -4 ------------ Run | Yrd Mat Min Exi Min Mat Fac Sto Fac Was Fac Low Dat Pro Fac Upp War Pro Fac Was Fac Used RIF Installer . | . . . . . . . . . . . . . . . . . . . . . Robots Hacked . | . . . . . . . . . . . . . . . . . . . . . Non-combat . | . . . . . . . . . . . . . . . . . . . . . Combat . | . . . . . . . . . . . . . . . . . . . . . Robot Hacks Applied . | . . . . . . . . . . . . . . . . . . . . . Relay Couplers Released . | . . . . . . . . . . . . . . . . . . . . . Fabnet Peak Effective % . | . . . . . . . . . . . . . . . . . . . . . Robots Rewired . | . . . . . . . . . . . . . . . . . . . . . Allies Hacked 2 | . . . . . . . . . . 2 . . . . . . . . . . Hacks Repelled . | . . . . . . . . . . . . . . . . . . . . . Allies | -11 -10 -10 -10 -9 -8 -7 -7 -6 -6 -6 -6 -6 -5 -5 -5 -5 -4 -4 -4 -4 -------- Run | Yrd Mat Min Exi Min Mat Fac Sto Fac Was Fac Low Dat Pro Fac Upp War Pro Fac Was Fac Total Allies 22 | . . . . 2 . . . . 19 . . . . . . . . . 1 . Largest Group 19 | . . . . 2 2 . . . 19 16 . . . . . . . . 1 . Highest-Rated Group 702 | . . . . 43 43 . . . 702 616 . . . . . . . . 46 . Highest-Rated Ally 50 | . . . . 31 31 . . . 50 50 . . . . . . . . 46 . Total Orders . | . . . . . . . . . . . . . . . . . . . . . Ally Attacks 339 | . . . . 9 7 . . . 97 222 . . . . . . . . 4 . Total Damage 8944 | . . . . 113 106 . . . 2662 5983 . . . . . . . . 80 . Kills 47 | . . . . 3 1 . . . 7 36 . . . . . . . . . . Allies Corrupted . | . . . . . . . . . . . . . . . . . . . . . Allies Melted . | . . . . . . . . . . . . . . . . . . . . . Intel | -11 -10 -10 -10 -9 -8 -7 -7 -6 -6 -6 -6 -6 -5 -5 -5 -5 -4 -4 -4 -4 ------- Run | Yrd Mat Min Exi Min Mat Fac Sto Fac Was Fac Low Dat Pro Fac Upp War Pro Fac Was Fac Active Infowar (turns) 32500 | 10 897 598 855 1148 3976 1797 1642 1244 882 3647 2177 251 1993 1436 1281 1881 2343 3231 413 798 Terrain 28617 | 10 897 598 855 1148 3976 1797 1097 . . 3555 2177 251 1993 1436 1281 1881 2343 3231 91 . Cloaking 2 | . . . . . . . . . . . . . . . . 2 . . . . Jamming 22972 | . . . . . . . 1451 1244 882 3647 2177 251 1993 1436 1281 1881 2343 3175 413 798 Robot Analysis Total 4 | . 3 . . . 1 . . . . . . . . . . . . . . . Derelict Logs Recovered 9 | . . 1 . 1 . . . . . . 2 . 2 . 1 . 2 . . . Drone Launches . | . . . . . . . . . . . . . . . . . . . . . Drone Recoveries . | . . . . . . . . . . . . . . . . . . . . . Exploration | -11 -10 -10 -10 -9 -8 -7 -7 -6 -6 -6 -6 -6 -5 -5 -5 -5 -4 -4 -4 -4 ------------- Run | Yrd Mat Min Exi Min Mat Fac Sto Fac Was Fac Low Dat Pro Fac Upp War Pro Fac Was Fac Turns Passed 32731 | 87 897 598 855 1148 3976 1797 1642 1244 882 3647 2177 251 1993 1436 1281 1881 2343 3231 413 952 Spaces Moved 15813 | 65 779 609 837 941 1627 850 733 786 592 1765 933 98 798 452 487 869 879 1127 197 389 Core 19 | 3 . 16 . . . . . . . . . . . . . . . . . . Treads 9475 | . . . . . 1213 . . . 268 1765 933 98 798 452 487 869 879 1127 197 389 Legs . | . . . . . . . . . . . . . . . . . . . . . Wheels 3188 | 62 180 . . . 253 850 733 786 324 . . . . . . . . . . . Hover 925 | . 599 326 . . . . . . . . . . . . . . . . . . Flight 2206 | . . 267 837 941 161 . . . . . . . . . . . . . . . Fastest Speed 31 | 50 52 34 34 31 31 100 100 100 100 160 160 160 160 160 160 160 160 160 160 160 Average Speed 124 | 78 63 45 34 31 141 100 100 100 129 160 160 160 160 160 160 160 160 160 160 160 Slowest Speed 170 | 80 120 120 34 34 170 100 100 115 160 160 160 160 160 160 160 160 160 160 160 160 Overloaded Moves . | . . . . . . . . . . . . . . . . . . . . . Propulsion Burnouts . | . . . . . . . . . . . . . . . . . . . . . Robots Hopped 6 | . . 1 . 5 . . . . . . . . . . . . . . . . Potential Cave-ins 42 | . . . . . 1 19 6 6 . . . . . . . 2 . 8 . . Cave-ins Triggered 6 | . . . . . 1 3 1 1 . . . . . . . . . . . . Exploration Rate (%) 65 | 4 89 95 94 98 98 21 96 16 96 44 83 73 91 9 62 91 90 18 99 7 Regions Visited 20 Branch Regions 10 Pre-discovered Areas 5 | . 2 . 1 1 . . . . . . . 1 . . . . . . . . Known Exits Taken 13 | . . 1 . 1 1 1 1 . . 1 1 1 1 1 1 1 1 . . . Unknown Exits Taken 3 | 1 1 . 1 . . . . . . . . . . . . . . . . . Scrap Searched 9 | . . 1 . 2 . . . . . . 1 . 2 . . . 3 . . . Spaces Dug 324 | . . . . . 39 82 64 15 . 44 . . 12 28 . . 6 28 . 6 Terrain Destroyed 1868 | 3 123 17 . . 480 371 156 187 . 279 5 . 22 30 1 . 22 71 2 99 Melee . | . . . . . . . . . . . . . . . . . . . . . Projectile 443 | . . . . . 82 80 113 34 . 41 5 . 16 3 1 . 18 42 2 6 AOE 1425 | 3 123 17 . . 398 291 43 153 . 238 . . 6 27 . . 4 29 . 93 Terrain Rammed . | . . . . . . . . . . . . . . . . . . . . . Walls Destroyed . | . . . . . . . . . . . . . . . . . . . . . Machines Disabled . | . . . . . . . . . . . . . . . . . . . . . Actions | -11 -10 -10 -10 -9 -8 -7 -7 -6 -6 -6 -6 -6 -5 -5 -5 -5 -4 -4 -4 -4 --------- Run | Yrd Mat Min Exi Min Mat Fac Sto Fac Was Fac Low Dat Pro Fac Upp War Pro Fac Was Fac Total 27290 | 79 1030 898 1406 1727 2838 1586 1417 1191 690 2405 1592 192 1481 1156 978 1361 1791 2501 275 696 Wait 9688 | . 118 232 569 722 769 592 486 355 65 465 646 95 648 689 483 458 891 1173 . 232 Move 15781 | 64 778 606 836 930 1626 848 732 785 591 1764 932 97 797 451 486 868 878 1127 196 389 Hop 6 | . . 1 . 5 . . . . . . . . . . . . . . . . Pick Up 25 | . 3 3 . . 7 1 . 1 2 4 . . . 1 . 1 . 2 . . Fast Attach 135 | 6 11 7 1 2 34 1 8 4 4 12 1 . . 5 . 14 1 12 5 7 Attach 23 | . 2 . . . 3 1 4 5 . 2 . . . . . . . 3 3 . Detach 25 | . . 2 . . 6 . 4 5 1 1 . . . . . 1 1 3 . 1 Swap 35 | . 1 2 . 3 11 6 1 1 1 2 . . 1 . . 2 1 2 1 . Drop 130 | . 7 9 . 4 41 3 7 5 3 13 . . 1 6 . 17 . 13 . 1 Fire 953 | 9 95 12 . 6 217 95 107 29 8 83 11 . 15 4 5 . 12 132 47 66 Melee 73 | . . 9 . 51 13 . . . . . . . . . . . . . . . Ram . | . . . . . . . . . . . . . . . . . . . . . Kick . | . . . . . . . . . . . . . . . . . . . . . Crush 2 | . . . . . 1 . . . . 1 . . . . . . . . . . Escape Stasis 2 | . . . . . . 1 . 1 . . . . . . . . . . . . Rewire 1 | . . . . . . . . . . 1 . . . . . . . . . . Trap . | . . . . . . . . . . . . . . . . . . . . . Miscellaneous 411 | . 15 15 . 4 110 38 68 . 15 57 2 . 19 . 4 . 7 34 23 . Route ------- -11/Scrapyard -10/Materials (discovered 5 exits: *Mat x3 / [*Min] / *Sub) -10/Mines (discovered 4 exits: *Mat x2 / *Exi / *Sub) -10/Exiles (discovered 2 exits: *Min x2) -9/Mines (discovered 2 exits: *Mat x2) -8/Materials (discovered 3 exits: *Fac x3) -7/Factory (discovered 3 exits: *Sto x2 / [Low]) -7/Storage (discovered 2 exits: *Fac / [Rec]) -6/Factory -6/Waste -6/Factory (discovered 4 exits: *Fac x2 / *Low x2) -6/Lower Caves (discovered 2 exits: *Low / *Dat) -6/Data Miner -5/Proximity Caves -5/Factory -5/Upper Caves -5/Warlord -4/Proximity Caves -4/Factory -4/Waste -4/Factory History --------- Turn | Location | Event 1 | -11/Scrapyard | Upgraded with Propulsion slot (x1) 1 | -11/Scrapyard | Upgraded with Utility slot (x2) 1 | -11/Scrapyard | Upgraded with Weapon slot (x1) 19 | -11/Scrapyard | Discovered new exit (range 16) 88 | -11/Scrapyard | Entered Materials 289 | -10/Materials | Discovered new exit (range 6) 328 | -10/Materials | Build established: Mutant 471 | -10/Materials | Discovered new exit (range 14) 483 | -10/Materials | Discovered new exit (range 13) 554 | -10/Materials | Central database locked down 617 | -10/Materials | Reached level 2 618 | -10/Materials | Upgraded with Propulsion slot (x1) 626 | -10/Materials | Discovered new exit (range 15) 637 | -10/Materials | Learned location of 2 exits from Subcaves 703 | -10/Materials | Discovered new exit (range 14) 799 | -10/Materials | Learned location of 2 exits from Mines 834 | -10/Materials | Learned location of Mines (-9) 861 | -10/Materials | Learned 4 Recycling zone layouts 948 | -10/Materials | Reached level 3 985 | -10/Materials | Upgraded with Utility slot (x1) 985 | -10/Materials | Entered Mines 986 | -10/Mines | Identified exit to Materials 987 | -10/Mines | Identified exit to Exiles 987 | -10/Mines | Identified exit to Subcaves 1193 | -10/Mines | Deemed a non-threat by the Exiles lab entrance 1249 | -10/Mines | A weapon hastily lodged in a ceiling crevice suddenly fell to the ground 1454 | -10/Mines | Received a Rocket Launcher from a helpful Derelict 1544 | -10/Mines | Found a hidden stash of uninstalled traps 1554 | -10/Mines | Build established: Scavenger-Gladiator 1583 | -10/Mines | Entered Exiles 1585 | -10/Exiles | Reached level 4 1682 | -10/Exiles | Discovered new exit (range 15) 1703 | -10/Exiles | Met 8R-AWN 1711 | -10/Exiles | Met EX-HEX 1725 | -10/Exiles | Met EX-BIN 1732 | -10/Exiles | Aligned with FarCom system 1732 | -10/Exiles | Given EX-Vault access code 1756 | -10/Exiles | Opened EX-Vault 1765 | -10/Exiles | Warned to stay clear of 0b10 Research branches 1776 | -10/Exiles | Met EX-DEC 1811 | -10/Exiles | Learned location of Zion (-7) 1823 | -10/Exiles | Discovered new exit (range 15) 1874 | -10/Exiles | Visited The Gauntlet 2124 | -10/Exiles | Upgraded with Utility slot (x1) 2124 | -10/Exiles | Found Superbattery 2438 | -10/Exiles | Left Exiles lab with Superbattery 2438 | -10/Exiles | Entered Mines 2439 | -9/Mines | Identified exit to Materials 2572 | -9/Mines | Discovered exit to Materials (range 9) 2597 | -9/Mines | Assembled infested the area 2633 | -9/Mines | Reached level 5 2639 | -9/Mines | Upgraded with Propulsion slot (x1) 2741 | -9/Mines | Build established: Scavenger-Scout 2772 | -9/Mines | Learned location of Storage (-7) 2914 | -9/Mines | Learned Materials terminal intel 3143 | -9/Mines | Reached level 6 3586 | -9/Mines | Entered Materials 3586 | -8/Materials | Accompanied by 2 allies 3587 | -8/Materials | Loaded intel: 12 terminal locations 3588 | -8/Materials | Reached level 7 3591 | -8/Materials | Led the pair of lost Derelicts to an unsafe place 4084 | -8/Materials | Reached level 8 4087 | -8/Materials | Upgraded with Power slot (x1) 4128 | -8/Materials | Discovered new exit (range 11) 4237 | -8/Materials | Build established: Scavenger-Skirmisher 4347 | -8/Materials | Crushed by falling debris 4533 | -8/Materials | Core integrity fell below 50% 4674 | -8/Materials | Reached level 9 4680 | -8/Materials | Upgraded with Utility slot (x1) 4986 | -8/Materials | Build established: Hacker-Skirmisher 5186 | -8/Materials | First assault squad dispatched 5225 | -8/Materials | Reached level 10 5228 | -8/Materials | Upgraded with Weapon slot (x1) 5438 | -8/Materials | Discovered new exit (range 12) 5814 | -8/Materials | Reached level 11 5817 | -8/Materials | Upgraded with Utility slot (x1) 6389 | -8/Materials | Central database locked down 7189 | -8/Materials | Discovered new exit (range 16) 7213 | -8/Materials | Reached level 12 7448 | -8/Materials | Sterilization system engaged 7448 | -8/Materials | Non-combat units ordered to evacuate 7481 | -8/Materials | Identified exit to Factory 7548 | -8/Materials | Combat units ordered to evacuate 7562 | -8/Materials | Entered Factory 7563 | -7/Factory | Identified exit to Storage 7564 | -7/Factory | Reached level 13 7568 | -7/Factory | Upgraded with Utility slot (x1) 7651 | -7/Factory | Discovered new exit (range 14) 7962 | -7/Factory | First assault squad dispatched 8075 | -7/Factory | Reached level 14 8403 | -7/Factory | Crushed by falling debris 8679 | -7/Factory | Crushed by falling debris 8679 | -7/Factory | Core integrity fell below 50% 8854 | -7/Factory | Reached level 15 9073 | -7/Factory | Crushed by falling debris 9359 | -7/Factory | Entered Storage 9361 | -7/Storage | Reached level 16 9759 | -7/Storage | First assault squad dispatched 9784 | -7/Storage | System corruption reached 10% 9860 | -7/Storage | Discovered new exit (range 14) 10167 | -7/Storage | Discovered new exit (range 8) 10456 | -7/Storage | Crushed by falling debris 10508 | -7/Storage | Reached level 17 10518 | -7/Storage | Upgraded with Utility slot (x1) 10775 | -7/Storage | Build established: Hacker-Gunner 11000 | -7/Storage | Identified exit to Factory 11001 | -7/Storage | Entered Factory 11199 | -6/Factory | Reached level 18 11821 | -6/Factory | Crushed by falling debris 11941 | -6/Factory | Reached level 19 11943 | -6/Factory | Upgraded with Utility slot (x1) 12245 | -6/Factory | Sucked down chute 12245 | -6/Factory | Entered Waste 12255 | -6/Waste | Spotted C-40 Crusher 12285 | -6/Waste | Destroyed C-40 Crusher 12352 | -6/Waste | Spotted C-40 Crusher 12379 | -6/Waste | Spotted C-40 Crusher 12392 | -6/Waste | Crushed by Compactor (1 part destroyed, 1 dropped) 12396 | -6/Waste | Spotted C-40 Crusher 12425 | -6/Waste | Warlord forces began an assault 12436 | -6/Waste | Allies destroyed C-40 Crusher 12441 | -6/Waste | Allies destroyed C-40 Crusher 12455 | -6/Waste | Spotted C-40 Crusher 12460 | -6/Waste | Allies destroyed C-40 Crusher 12472 | -6/Waste | Lost 3 allies 12501 | -6/Waste | Spotted C-40 Crusher 12503 | -6/Waste | Allies destroyed C-40 Crusher 12856 | -6/Waste | Discovered new exit (range 12) 12969 | -6/Waste | Build established: Hacker-Tank 13087 | -6/Waste | Identified exit to Factory 13127 | -6/Waste | Entered Factory 13127 | -6/Factory | Accompanied by 16 allies 13504 | -6/Factory | Build established: Hacker-Skirmisher 13713 | -6/Factory | Discovered new exit (range 15) 13746 | -6/Factory | Identified exit to Lower Caves 14546 | -6/Factory | Reached level 20 14710 | -6/Factory | Discovered exit to Lower Caves (range 13) 15005 | -6/Factory | Allied Derelicts emerged from ambush trap array 15227 | -6/Factory | First assault squad dispatched 15602 | -6/Factory | Reached level 21 15778 | -6/Factory | Central database locked down 16047 | -6/Factory | Discovered new exit (range 16) 16163 | -6/Factory | Identified exit to Factory 16295 | -6/Factory | Discovered exit to Factory (range 16) 16774 | -6/Factory | Entered Lower Caves 16836 | -6/Lower Caves | Identified exit to Lower Caves 16996 | -6/Lower Caves | Learned Factory emergency access door positions 18347 | -6/Lower Caves | Spotted B-75 Beast 18370 | -6/Lower Caves | Destroyed B-75 Beast 18453 | -6/Lower Caves | A Derelict revealed a hidden shortcut to meet someone special 18456 | -6/Lower Caves | Identified exit to Data Miner 18951 | -6/Lower Caves | Entered Data Miner 18951 | -6/Data Miner | Discovered new exit (range 6) 18979 | -6/Data Miner | Met Data Miner 19031 | -6/Data Miner | Learned location of Section 7 (-3) 19031 | -6/Data Miner | Acquired the access code to Warlord's prototype stash 19128 | -6/Data Miner | Received God Mode back door access code from Data Miner 19200 | -6/Data Miner | Identified exit to Proximity Caves 19202 | -6/Data Miner | Entered Proximity Caves 19212 | -5/Proximity Caves | Reached level 22 19459 | -5/Proximity Caves | Learned Factory security intel 19623 | -5/Proximity Caves | Attracted the attention of an 0b10 checkpoint 19869 | -5/Proximity Caves | Attracted the attention of an 0b10 base 20437 | -5/Proximity Caves | Learned 4 Factory zone layouts 21154 | -5/Proximity Caves | Discovered exit to Factory (range 12) 21195 | -5/Proximity Caves | Entered Factory 22411 | -5/Factory | Discovered new exit (range 16) 22452 | -5/Factory | Identified exit to Upper Caves 22631 | -5/Factory | Entered Upper Caves 22634 | -5/Upper Caves | A Derelict revealed a hidden shortcut to "reach the base" 22635 | -5/Upper Caves | Identified exit to Warlord 22949 | -5/Upper Caves | Attracted the attention of an 0b10 checkpoint 23091 | -5/Upper Caves | Learned Factory terminal intel 23912 | -5/Upper Caves | Entered Warlord 23914 | -5/Warlord | Reached level 23 24073 | -5/Warlord | Discovered new exit (range 8) 24084 | -5/Warlord | Identified exit to Proximity Caves 24896 | -5/Warlord | Visited the Vortex Lab 24907 | -5/Warlord | Warlord's base attacked by MAIN.C 24911 | -5/Warlord | Found Prototype Energy Cannon 24911 | -5/Warlord | Identified Vortex Cannon 24917 | -5/Warlord | Found Prototype Piercing Weapon 24917 | -5/Warlord | Identified Vortex Lance 24923 | -5/Warlord | Found Prototype Launcher 24923 | -5/Warlord | Identified Vortex Catalyst Activator 25072 | -5/Warlord | Met Warlord 25126 | -5/Warlord | Learned Testing stockpile data 25126 | -5/Warlord | Learned Quarantine stockpile data 25130 | -5/Warlord | Learned Armory scanalyzer intel 25170 | -5/Warlord | Opened Warlord's prototype stash 25180 | -5/Warlord | Found Prototype Device 25180 | -5/Warlord | Identified Exp. Cloaking Device 25188 | -5/Warlord | Found Prototype Hackware 25188 | -5/Warlord | Identified System Mapper 25196 | -5/Warlord | Found Prototype Processor 25196 | -5/Warlord | Identified Exp. Target Analyzer 25215 | -5/Warlord | Found Prototype Reactor 25215 | -5/Warlord | Identified Vortex Chain Reactor 25257 | -5/Warlord | Warlord forces counterattacked 25582 | -5/Warlord | Warlord base infiltrated, sounded retreat 25779 | -5/Warlord | Lost 12 allies 25793 | -5/Warlord | Entered Proximity Caves 25810 | -4/Proximity Caves | Identified exit to Factory 25953 | -4/Proximity Caves | Learned Research trap positions 26910 | -4/Proximity Caves | Spotted B-86 Titan 28136 | -4/Proximity Caves | Entered Factory 28137 | -4/Factory | Loaded intel: 26 terminal locations 28138 | -4/Factory | Reached level 24 28143 | -4/Factory | Upgraded with Utility slot (x1) 29685 | -4/Factory | Found Quantum Capacitor 29833 | -4/Factory | Fabricated Adv. Force Field (x2) 30325 | -4/Factory | Unchained authorized (GL-D0S) 30365 | -4/Factory | Exiles provided nearest exit location to -3/Research 30372 | -4/Factory | Reached level 25 30558 | -4/Factory | Fabricated Adv. System Restoration Module? 31112 | -4/Factory | Central database locked down 31367 | -4/Factory | Sucked down chute 31367 | -4/Factory | Entered Waste 31368 | -4/Waste | Met a frightened Derelict 31375 | -4/Waste | Spotted C-40 Crusher 31379 | -4/Waste | Destroyed C-40 Crusher 31382 | -4/Waste | EMP discharged 31404 | -4/Waste | Spotted C-40 Crusher 31432 | -4/Waste | Spotted C-40 Crusher 31455 | -4/Waste | Crushed by Compactor (1 part destroyed) 31458 | -4/Waste | Crushed by Compactor (1 part destroyed) 31461 | -4/Waste | Crushed by Compactor (1 part destroyed) 31463 | -4/Waste | Destroyed C-40 Crusher 31469 | -4/Waste | Crushed by Compactor (1 part destroyed, 1 dropped) 31472 | -4/Waste | Crushed by Compactor (1 part destroyed, 1 dropped) 31478 | -4/Waste | Crushed by Compactor (1 part destroyed) 31481 | -4/Waste | Crushed by Compactor (1 part destroyed) 31482 | -4/Waste | EMP discharged 31492 | -4/Waste | Crushed by Compactor (1 part destroyed) 31496 | -4/Waste | Crushed by Compactor (0 parts destroyed, 1 dropped) 31498 | -4/Waste | Spotted C-40 Crusher 31502 | -4/Waste | Crushed by Compactor (0 parts destroyed, 1 dropped) 31508 | -4/Waste | Destroyed C-40 Crusher 31514 | -4/Waste | Destroyed C-40 Crusher 31523 | -4/Waste | Lost 9 parts (2p4u3w) 31524 | -4/Waste | Spotted C-40 Crusher 31534 | -4/Waste | Destroyed C-40 Crusher 31536 | -4/Waste | Spotted C-40 Crusher 31543 | -4/Waste | Destroyed C-40 Crusher 31582 | -4/Waste | EMP discharged 31582 | -4/Waste | System corruption reached 10% 31682 | -4/Waste | EMP discharged 31750 | -4/Waste | Build established: Hacker-Mutant 31764 | -4/Waste | Discovered new exit (range 10) 31777 | -4/Waste | Identified exit to Factory 31780 | -4/Waste | Entered Factory 31822 | -4/Factory | Found Prototype Processor 31822 | -4/Factory | Identified Exp. Signal Interpreter 31858 | -4/Factory | Central database locked down 32581 | -4/Factory | Unchained authorized (GL-D0S) 32614 | -4/Factory | Build established: Hacker-Assassin 32617 | -4/Factory | Core integrity fell below 50% 32715 | -4/Factory | Core integrity fell below 20% 32732 | -4/Factory | Destroyed by X-77 Beamer with Gatling Laser Last Messages --------------- 32623_ P-70 Sage destroyed. 32625_ System corrupted: Matter fused (-8). 32628_ The unstable cave ceiling collapses. 32630_ Destroyed Hpw. Shock Rifle. 32631_ R-10 Processor collects Wheel. 32632_ P-70 Sage heat damages Antigrav System. 32633_ P-70 Sage destroyed. 32634_ R-10 Processor collects Corrupted Lgt. Ion Engine. 32634_ R-10 Processor collects Terrain Scan Processor. 32638_ R-10 Processor collects Imp. Heat Sink. 32641_ 4J6H49X 2XDS46A0O/NYIVX#IPWHBP/ 32644_ Acquired 4 matter. 32665_ System corrupted: Phase Shifter fused. 32673_ U-05 Engineer lays Concrete. 32679_ The unstable cave ceiling collapses. 32679_ U-05 Engineer lays Concrete. 32708_ ALERT: Security rotation in progress. 32717_ X-77 Beamer destroyed. 32727_ System corrupted: Matter fused (-8). 32729_ Overload: Energy bleed (-25). Map ----- +----------------------------------------------------+ | ?????????????????????????????##??????##" | | ?????????????????????????????######### " | | ??????????????????????????????# ##" | | ??????????????????????????????# ##" | | ??????????????????????????????# """ #?# | | ??????????????????????######### """ #?# | | ?????????????????????## + """ #?# | | ???????????????????#### # ### | | ????????#+##########"#" ######"############+ | | ???? R ## ! + | | ????# p ## ! # | | ?????? "" ## """" """" # | | ???????"F ""% u p ## """" """" # | | ???????"" "%%%% ## """" """" # | | ???????"" "%% ## """" """" # | | ???????? ############+### | | ??s????s?"""" "%% % | | ??ss??????""" "%% %" | | ????? """" "%% %%"" | | ??? k | | ??? u | | ??? ########"""""######+#####+############## | | ?????????????????####### #??????# [ | | ???????????????????????# " "" """ #??????# | | ??????????????????????## """" "T" #??????# | | ??????????????????????## @""" #??????# """ " | | ??????????????????????## """" #??????# """ " | | ???????????????????????#[!"""" #??????# """ " | | ???????????????????????#x%"""" #??????# | | ?????k?????????????????#=* #??????# | | ???????????????????????# #??????####### | | ???????????????????????# #????????????? | | ??????????????????????## #????????????? | | ??????????????????????## #????????????? | | ??????????????????????###############????????????? | | ?????????????????????????????????????????????????? | | ?????????????????????????????????????????????????? | | ?????????????????????????????????????????????????? | | ?????????????????????????????????????????????????? | | ?????????????????????????????????????????????????? | | ?????????????????????????????????????????????????? | | ?????????????????????????????????????????????????? | | ?????????????????????????????????????????????????? | | ?????????????????????????????????????????????????? | | ?????????????????????????????????????????????????? | | ?????????????????????????????????????????????????? | | ?????????????????????????????????????????????????? | | ?????????????????????????????????????????????????? | | ?????????????????????????????????????????????????? | | ?????????????????????????????????????????????????? | +----------------------------------------------------+ Best States ------------- Heat Dissipation 124 Energy Generation 60 Energy Capacity 2225 Matter Stores 300 Matter Capacity 300 Sight Range 18 Robot Scan Range 26 Terrain Scan Range 16 Terrain Scan Density 410 Jamming Range 12 Base Temperature (-) 100 Corruption Containment 12 Armor Coverage 375 Resistance: KI 30 Weapon Cycling 15 Phase Shifting 5 Evasion (%) 63 Targeting Accuracy 20 Target Analysis 10 Armor Integrity Analysis 40 Recoil Reduction 4 Particle Charging 20 Offensive Hacking 52 Defensive Hacking 15 Item Schematics ----------------- Combat Drone Bay | -6/Data Miner | Free Lgt. Regenerative Plating | -6/Data Miner | Free Enh. Armored Leg | -6/Data Miner | Free Imp. Thermal Defense Suite | -6/Data Miner | Free Hvy. Proton Cannon | -6/Data Miner | Free Adv. VSS Leg | -6/Data Miner | Free Lrn. Sensor Array | -6/Data Miner | Free Force Lance | -6/Data Miner | Free Adv. System Restoration Module | -6/Data Miner | Free Hardcell Cannon | -6/Data Miner | Free Graphene Brace | -6/Data Miner | Free Adv. Force Field | -6/Data Miner | Free Adv. Hacking Suite | -5/Factory | Hacked Enh. Nova Cannon | -4/Factory | Hacked Biometal Heavy Treads | -4/Factory | Hacked Robot Schematics ------------------ M-22 Extractor | -6/Data Miner | Free S-27 Virus | -6/Data Miner | Free I-36 Angel | -6/Data Miner | Free B-60 Warrior | -6/Data Miner | Free H-66 Slayer | -6/Data Miner | Free X-72 Disruptor | -6/Data Miner | Free G-67 Veteran | -6/Data Miner | Free E-15 Imp | -6/Data Miner | Free Fabricated ------------ Adv. Force Field | x2 | -4/Factory Adv. System Restoration Module | x2 | -4/Factory Repaired ---------- Nothing Studied --------- EM Pulse Cannon | -8/Materials | Hacked Arm. Treads | -8/Materials | Hacked Adv. Treads | -8/Materials | Hacked Plasma Cannon | -7/Factory | Hacked Matter Neutralizer | -4/Factory | Hacked Mic. Fission Core | -4/Factory | Hacked Lgt. Antimatter Reactor | -4/Factory | Hacked Imp. Heavy Treads | -4/Factory | Hacked Alien Tech Used ----------------- None Achievements -------------- A Powerful Ally? Can't Touch This Charge!!! I Laugh At Your Crits Ooh, Shiny! Protector Reappropriation Sixth Sense This Is My Hole Throw Away The Key Well-fed Force Field Challenges ------------ None RPGLIKE | -11 -10 -10 -10 -9 -8 -7 -7 -6 -6 -6 -6 -6 -5 -5 -5 -5 -4 -4 -4 -4 --------- Run | Yrd Mat Min Exi Min Mat Fac Sto Fac Was Fac Low Dat Pro Fac Upp War Pro Fac Was Fac Levels Raised 24 | . 2 . 1 2 6 3 2 2 . 2 . . 1 . . 1 . 2 . . XP Earned 40338 | 3000 3060 1300 350 3075 9615 4766 2017 3030 87 3336 176 105 700 1037 252 286 940 2572 67 567 XP Spent 38965 | 2990 2975 . 1500 2950 8145 5435 2920 2900 . 3150 . . 1320 . . . . 4680 . . Upgrades 75 | 11 9 . 2 8 17 10 4 1 . 5 . . 3 . . . . 5 . . Power Slot 1 | . . . . . 1 . . . . . . . . . . . . . . . Propulsion Slot 3 | 1 1 . . 1 . . . . . . . . . . . . . . . . Utility Slot 10 | 2 1 . 1 . 2 1 1 1 . . . . . . . . . 1 . . Weapon Slot 2 | 1 . . . . 1 . . . . . . . . . . . . . . . Core Integrity 5 | . . . . . . 3 2 . . . . . . . . . . . . . Heat Dissipation 15 | 2 2 . . . 5 1 . . . . . . 2 . . . . 3 . . Energy Generation 2 | . 1 . . . . . . . . . . . . . . . . 1 . . Mass Support 2 | . 1 . . 1 . . . . . . . . . . . . . . . . Inventory Capacity 3 | 1 . . . 1 . . . . . 1 . . . . . . . . . . Sight Range 2 | . . . . 1 . . . . . 1 . . . . . . . . . . Sensor Range 13 | 1 1 . 1 4 6 . . . . . . . . . . . . . . . Terrain Scan Density 4 | 3 . . . . 1 . . . . . . . . . . . . . . . Ranged Accuracy 5 | . . . . . 1 2 . . . 2 . . . . . . . . . . Hack Attack % 4 | . 1 . . . . 1 . . . 1 . . 1 . . . . . . . Hack Defense % 3 | . 1 . . . . 2 . . . . . . . . . . . . . . TH Damage % 1 | . . . . . . . 1 . . . . . . . . . . . . . Protomatter Created 3664 | . 202 91 . 31 1043 388 598 . 90 245 10 . 228 . 53 . 94 347 169 75 Integrity Restored 8350 | . 219 264 . 76 2360 802 1469 . 317 1000 30 . 392 . 78 . 143 700 500 . Core 6092 | . 147 179 . 76 1923 748 1117 . 235 390 30 . 214 . 40 . 91 524 378 . Parts 2258 | . 72 85 . . 437 54 352 . 82 610 . . 178 . 38 . 52 176 122 . Protomatter Decayed 2095 | . 20 22 . 47 142 161 71 . . 660 . . 30 . 100 716 52 74 . . Game ------ Seed ClaymoresBladeVibroblade Manual? 0 Play Time 06:52:47 Cumulative 100.4 hours Start 2025.11.19 @ 11:13:16 End 2025.11.19 @ 17:16:42 Sessions 1 Manual Loads 0 Difficulty Rogue Special Mode Winter2019/RPGLIKE Game No. 84 Rogue 84 Adventurer 0 Explorer 0 Win Type - Total 0 Types 0/0/0/0/0/0/0/0/0/0 Lore% 62 Gallery% 40 Achievement% 39 Wizard Run 0 Options --------- Layout 0 ASCII 0 Keyboard 0 Movement Mouse Keybinds 0 Fullscreen 2 Font 24/Smallcaps Map View 76x50 Zoom Use 0% Tactical HUD 1 Map Filters NONE Filters NONE Steam 1 RUN: f5d46813-90ef-4c8f-8ca8-7bb5d38aaaba